bitfinex-derivatives/quotes_ETHF0:USTF0_20250327
["timestamp","ask_amount","ask_price","bid_price","bid_amount"]
[1743102874380,0.99523,2010.0,2009.9,4.19925]
[1743102880683,0.99523,2010.0,2009.9,5.56435]
[1743102893303,2.36448,2010.1,2010.0,0.9952]
[1743102893491,2.36448,2010.1,2010.0,3.0229]
[1743102900202,2.36448,2010.1,2010.0,2.0277]
[1743102900503,2.36448,2010.1,2010.0,3.0229]
[1743102901997,2.36448,2010.1,2010.0,2.0277]
[1743102902291,2.36448,2010.1,2010.0,3.0229]
[1743102902499,2.36448,2010.1,2010.0,2.0277]
[1743102902698,2.36448,2010.1,2010.0,1.3322]
[1743102905403,0.9953,2009.8,2009.7,0.00747645]
[1743102905609,4.2031,2009.8,2009.7,0.00747645]
[1743102905904,0.9953,2009.8,2009.7,1.00282645]
[1743102906109,0.9953,2009.8,2009.7,4.20582645]
[1743102906300,0.9953,2009.8,2009.7,4.92372645]
[1743102906507,0.9953,2009.8,2009.7,6.24752645]
[1743102907005,0.99521,2010.1,2010.0,0.9952]
[1743102907209,0.99521,2010.1,2010.0,4.1972]
[1743102908208,0.99521,2010.1,2010.0,5.5878]
[1743102908604,0.99509,2010.3,2010.2,0.99505]
[1743102908807,0.99503,2010.4,2010.3,0.995]
[1743102909000,0.99503,2010.4,2010.3,4.8612]
[1743102909199,0.99503,2010.4,2010.3,6.2518]
[1743102911308,1.4477,2010.5,2010.4,0.995]
[1743102911614,0.99492,2010.6,2010.5,0.9949]
[1743102911816,0.99492,2010.6,2010.5,6.2212]
[1743102913616,1.3209,2010.7,2010.6,0.9949]
[1743102913817,0.99481,2010.9,2010.8,0.9948]
[1743102914121,0.99481,2010.9,2010.8,7.4046]
[1743102914722,0.99481,2010.9,2010.8,8.8357]
[1743102915519,2.31563,2011.0,2010.9,0.99475]
[1743102915822,0.9947,2011.1,2011.0,0.9947]
[1743102916223,0.99464,2011.2,2011.1,0.99462]
[1743102916421,2.43754,2011.2,2011.1,4.19662]
[1743102917025,2.48616,2011.5,2011.2,0.99461]
[1743102917214,0.99457,2011.3,2011.2,1.70921]
[1743102919016,0.99457,2011.3,2011.2,0.7146]
[1743102920222,0.99461,2011.2,2011.1,6.4098]
[1743102920416,2.39691,2011.2,2011.1,3.202]
[1743102921028,2.39691,2011.2,2011.1,4.19665]
[1743102921821,2.39691,2011.2,2011.1,3.202]
[1743102922018,2.39691,2011.2,2011.1,4.19665]
[1743102922625,2.39691,2011.2,2011.1,3.202]
[1743102923220,2.39691,2011.2,2011.1,4.19665]
[1743102924926,1.4023,2011.2,2011.1,7.40445]
[1743102925125,0.99455,2011.4,2011.3,0.99451]
[1743102925716,0.99455,2011.4,2011.3,1.65351]
[1743102926131,0.99455,2011.4,2011.3,0.659]
[1743102926632,0.99455,2011.4,2011.3,1.65356]
[1743102927131,0.99455,2011.4,2011.3,0.659]
[1743102927331,2.48627,2011.4,2011.1,3.2078]
[1743102927630,3.10226,2011.3,2011.2,3.2]
[1743102928520,0.99475,2010.9,2010.8,2.36267]
[1743102928719,0.99475,2010.9,2010.8,5.56267]
[1743102929219,0.99475,2010.9,2010.8,4.5679]
[1743102929418,2.35415,2010.9,2010.8,4.5679]
[1743102929825,2.35415,2010.9,2010.8,5.5627]
[1743102930026,2.35415,2010.9,2010.8,4.5679]
[1743102930931,0.7196,2011.2,2010.9,2.48689]
[1743102931230,5.56176,2011.4,2011.3,0.99456]
[1743102931432,5.56176,2011.4,2011.3,4.19456]
[1743102931733,5.56176,2011.4,2011.3,27.09456]
[1743102931928,0.6572,2011.6,2011.5,0.99446]
[1743102932131,0.99436,2011.8,2011.7,0.99432]
[1743102932329,2.36391,2011.8,2011.7,4.19436]
[1743102932833,2.36391,2011.8,2011.7,5.50886]
[1743102933420,0.99429,2011.9,2011.8,0.99426]
[1743102933823,5.57163,2012.0,2011.9,0.99426]
[1743102934028,4.20203,2012.0,2011.9,0.99426]
[1743102934635,4.20201,2012.0,2011.9,0.99426]
[1743102935137,0.99431,2011.9,2011.8,0.99428]
[1743102935334,2.35881,2011.9,2011.8,0.99428]
[1743102936331,2.35881,2011.9,2011.7,4.52195768]
[1743102936332,0.99431,2011.8,2011.7,4.52195768]
[1743102936630,2.35881,2011.8,2011.7,4.52195768]
[1743102936835,3.06951,2011.8,2011.7,4.52195768]
[1743102937133,3.06951,2011.8,2011.7,8.72411768]
[1743102939831,3.06951,2011.8,2011.7,5.51631768]
[1743102940134,3.06951,2011.8,2011.7,8.72411768]
[1743102941032,3.06951,2011.8,2011.7,7.72975768]
[1743102941438,3.06951,2011.8,2011.7,8.72411768]
[1743102946229,2.35881,2011.8,2011.7,8.72411768]
[1743102948345,0.9943,2011.9,2011.8,0.99431]
[1743102948542,0.9943,2011.9,2011.8,3.11131]
[1743102949542,0.99426,2012.0,2011.9,0.99426]
[1743102949743,0.99426,2012.0,2011.9,2.32756]
[1743102950838,0.99426,2012.0,2011.9,1.3333]
[1743102951051,2.31876,2012.0,2011.9,2.32756]
[1743102955257,2.31876,2012.0,2011.9,1.3333]
[1743102955559,2.31876,2012.0,2011.9,2.32756]
[1743102956159,2.31876,2012.0,2011.9,1.3333]
[1743102956749,2.31876,2012.0,2011.9,2.32756]
[1743102956960,2.31876,2012.0,2011.9,1.3333]
[1743102957259,2.31876,2012.0,2011.9,2.32756]
[1743102957459,2.31876,2012.0,2011.9,1.3333]
[1743102957661,2.31876,2012.0,2011.7,9.60154768]
[1743102957662,0.99431,2011.8,2011.7,8.11009768]
[1743102957858,0.99431,2011.8,2011.7,3.91575768]
[1743102958058,0.99431,2011.8,2011.7,7.40761768]
[1743102958254,1.65331,2011.8,2011.7,8.79731768]
[1743102958959,1.65331,2011.8,2011.7,7.80295768]
[1743102959768,1.65331,2011.8,2011.7,8.79731768]
[1743102960968,0.99431,2011.8,2011.7,8.79731768]
[1743102962271,0.99431,2011.8,2011.7,7.80295768]
[1743102964062,0.99431,2011.8,2011.7,0.00745768]
[1743102965565,2.48598,2011.7,2011.3,53.3428]
[1743102965767,0.99451,2011.4,2011.3,56.5408]
[1743102965971,0.99451,2011.4,2011.3,54.6786]
[1743102966666,1.66791,2011.4,2011.3,54.6786]
[1743102966871,1.66791,2011.4,2011.3,51.4806]
[1743102969173,1.66791,2011.4,2011.3,52.47516]
[1743102969373,1.66791,2011.4,2011.3,51.4806]
[1743102970372,1.66791,2011.4,2011.3,52.47516]
[1743102970575,1.3905,2011.5,2011.4,0.99451]
[1743102970778,0.00739512,2011.6,2011.5,0.99446]
[1743102970973,0.00739512,2011.6,2011.5,1.67776]
[1743102971167,1.00180512,2011.6,2011.5,1.67776]
[1743102973079,1.00180512,2011.6,2011.5,4.87676]
[1743102974675,1.00180512,2011.6,2011.5,8.08456]
[1743102978481,0.00739512,2011.6,2011.5,8.08456]
[1743102978781,1.00180512,2011.6,2011.5,8.08456]
[1743102979479,0.00739512,2011.6,2011.5,8.08456]
[1743102979670,1.00180512,2011.6,2011.5,8.08456]
[1743102980371,1.00180512,2011.6,2011.5,7.0901]
[1743102980577,1.00180512,2011.6,2011.5,3.2078]
[1743102980771,1.00180512,2011.6,2011.5,4.521]
[1743102980981,2.41520512,2011.6,2011.5,4.521]
[1743102981972,2.41520512,2011.6,2011.5,5.51546]
[1743102982169,2.41520512,2011.6,2011.5,2.30766]
[1743102982373,2.41520512,2011.6,2011.5,1.3132]
[1743102983485,0.99451,2011.4,2011.3,50.135]
[1743102983986,0.99451,2011.4,2011.3,51.4879]
[1743102984178,2.36181,2011.4,2011.3,51.4879]
[1743102984379,3.01831,2011.4,2011.3,51.4879]
[1743102984793,3.01831,2011.4,2011.3,52.48246]
[1743102985384,1.3673,2011.4,2011.3,53.18496]
[1743102985593,2.36181,2011.4,2011.3,53.18496]
[1743102987308,2.36181,2011.4,2011.3,52.1904]
[1743102987513,2.36181,2011.4,2011.3,53.18496]
[1743102988308,0.99451,2011.4,2011.3,53.18496]
[1743102990502,0.99451,2011.4,2011.3,3.04996]
[1743102991009,1.4188,2011.5,2011.4,0.99451]
[1743102991299,0.71789512,2011.6,2011.5,0.99446]
[1743102991300,0.00739512,2011.6,2011.5,0.99446]
[1743102991500,1.00180512,2011.6,2011.5,5.50906]
[1743102992092,0.00739512,2011.6,2011.5,5.50906]
[1743102993193,1.00180512,2011.6,2011.5,8.71686]
[1743102993594,0.00739512,2011.6,2011.5,8.71686]
[1743102993896,1.00180512,2011.6,2011.5,8.71686]
[1743102994401,1.00180512,2011.6,2011.5,4.5234]
[1743102994600,1.00180512,2011.6,2011.5,1.3156]
[1743102994896,0.99451,2011.4,2011.3,0.7025]
[1743102995698,1.64941,2011.4,2011.3,0.7025]
[1743102996293,1.64941,2011.4,2011.3,2.0838]
[1743102996494,1.64941,2011.4,2011.2,3.2078]
[1743102996495,0.99456,2011.3,2011.2,3.2078]
[1743102996801,2.32026,2011.3,2011.2,3.2078]
[1743102996996,2.32026,2011.3,2011.2,4.5891]
[1743102997600,2.32026,2011.3,2011.2,3.2078]
[1743102998499,2.32026,2011.3,2011.2,4.6163]
[1743103001107,2.32026,2011.3,2011.2,3.2078]
[1743103001805,4.82026,2011.3,2011.2,3.2078]
[1743103002001,0.99461,2011.2,2011.1,0.00745768]
[1743103002203,0.9947,2011.0,2010.9,1.366]
[1743103003106,1.7129,2011.0,2010.9,1.366]
[1743103003708,0.99475,2010.9,2010.8,50.128]
[1743103003913,2.33795,2010.9,2010.8,50.128]
[1743103005005,2.33795,2010.9,2010.8,51.5021]
[1743103006210,0.9948,2010.8,2010.7,0.00745768]
[1743103006416,3.0528,2010.8,2010.7,1.38155768]
[1743103006612,3.0528,2010.8,2010.7,0.00745768]
[1743103007112,3.0528,2010.8,2010.7,1.38155768]
[1743103007811,3.0528,2010.8,2010.7,2.37640768]
[1743103008112,3.0528,2010.8,2010.7,1.38155768]
[1743103008314,3.0528,2010.8,2010.7,2.03975768]
[1743103009616,3.0528,2010.8,2010.7,3.03460768]
[1743103009819,3.0528,2010.8,2010.7,2.03975768]
[1743103010212,3.0528,2010.8,2010.7,3.03460768]
[1743103010716,3.0528,2010.8,2010.7,2.03975768]
[1743103011418,3.0528,2010.8,2010.7,3.03460768]
[1743103011621,3.0528,2010.8,2010.7,2.03975768]
[1743103012319,3.0528,2010.8,2010.7,3.03460768]
[1743103013122,3.0528,2010.8,2010.7,2.03975768]
[1743103013419,3.0528,2010.8,2010.7,3.03460768]
[1743103013715,2.3359,2010.8,2010.7,3.03460768]
[1743103014312,2.3359,2010.8,2010.7,2.03975768]
[1743103014723,2.3359,2010.8,2010.7,3.03460768]
[1743103017023,2.3359,2010.8,2010.7,2.03975768]
[1743103017225,2.3359,2010.8,2010.7,3.03460768]
[1743103017721,2.3359,2010.8,2010.7,2.03975768]
[1743103018021,2.3359,2010.8,2010.7,3.03460768]
[1743103019116,2.3359,2010.8,2010.7,2.03975768]
[1743103019523,2.3359,2010.8,2010.7,3.03460768]
[1743103020215,0.9947,2011.1,2011.0,0.99466]
[1743103020417,2.42147,2011.2,2011.1,0.99465]
[1743103020717,0.99459,2011.3,2011.2,0.99456]
[1743103021022,3.2078,2011.4,2011.3,0.99456]
[1743103021023,0.99454,2011.4,2011.3,0.99456]
[1743103021221,1.00185512,2011.6,2011.5,0.99446]
[1743103021722,0.99446,2011.5,2011.4,2.36677]
[1743103022725,0.99446,2011.5,2011.4,1.3723]
[1743103022925,0.99456,2011.3,2011.2,3.2078]
[1743103023822,0.99456,2011.3,2011.2,4.20241]
[1743103024219,0.99454,2011.4,2011.3,0.99452]
[1743103024427,0.99454,2011.4,2011.3,2.40492]
[1743103024723,0.99454,2011.4,2011.3,2.40496]
[1743103027222,2.41078,2011.5,2011.4,0.99451]
[1743103027422,2.41078,2011.5,2011.4,1.3826]
[1743103027824,3.12418,2011.5,2011.4,1.3826]
[1743103029130,2.41078,2011.5,2011.4,1.3826]
[1743103033924,2.41078,2011.5,2011.4,2.0446]
[1743103036838,2.41078,2011.5,2011.4,1.3826]
[1743103038233,0.99456,2011.3,2011.2,3.8781]
[1743103039238,0.99456,2011.3,2011.2,3.2078]
[1743103039441,2.31496,2011.3,2011.2,5.64681]
[1743103039744,0.99456,2011.3,2011.2,4.6522]
[1743103039943,2.31496,2011.3,2011.2,4.6522]
[1743103040131,0.00739512,2011.6,2011.2,7.1386]
[1743103040337,4.5839,2012.0,2011.5,4.20226]
[1743103040637,0.99434,2011.8,2011.7,0.99431]
[1743103040941,0.99431,2011.9,2011.8,0.99428]
[1743103042540,0.99431,2011.8,2011.7,1.4444]
[1743103043436,0.99436,2011.7,2011.6,0.00745768]
[1743103043645,5.54186,2011.7,2011.6,0.00745768]
[1743103044446,0.99456,2011.3,2011.2,0.7229]
[1743103045833,2.36016,2011.3,2011.2,2.087]
[1743103046841,3.07556,2011.3,2011.2,2.087]
[1743103047638,3.07556,2011.3,2011.2,1.3641]
[1743103047843,2.081,2011.3,2011.0,1.44515768]
[1743103048144,0.99465,2011.1,2011.0,1.33215768]
[1743103049442,0.99465,2011.1,2011.0,2.32685768]
[1743103049740,0.99465,2011.1,2011.0,1.33215768]
[1743103050841,0.99465,2011.1,2011.0,2.32685768]
[1743103051042,0.99465,2011.1,2011.0,1.33215768]
[1743103051445,0.99465,2011.1,2011.0,2.32685768]
[1743103052946,0.99465,2011.1,2011.0,1.33215768]
[1743103058150,0.99465,2011.1,2011.0,0.00745768]
[1743103060747,2.41835,2011.1,2011.0,0.00745768]
[1743103063148,2.41835,2011.1,2010.8,3.2078]
[1743103063149,0.99475,2010.9,2010.8,3.2078]
[1743103063346,2.48693,2010.9,2010.5,3.2078]
[1743103063558,0.9949,2010.6,2010.5,3.2078]
[1743103064048,0.9949,2010.6,2010.5,4.20275]
[1743103064652,0.9949,2010.6,2010.5,3.2078]
[1743103064956,0.9949,2010.6,2010.5,4.20275]
[1743103065557,0.9949,2010.6,2010.5,4.20271]
[1743103066354,2.39789,2010.7,2010.6,0.9949]
[1743103066649,2.39789,2010.7,2010.6,0.694]
[1743103067044,2.39789,2010.7,2010.6,1.6889]
[1743103067241,2.39789,2010.7,2010.6,0.694]
[1743103069649,0.99489,2010.7,2010.6,1.6889]
[1743103069850,0.99489,2010.7,2010.6,0.694]
[1743103070157,0.99489,2010.7,2010.6,1.6889]
[1743103070353,0.00745768,2010.8,2010.7,0.99485]
[1743103070544,0.00745768,2010.8,2010.7,1.70585]
[1743103074758,1.00225768,2010.8,2010.7,1.70585]
[1743103076759,0.00745768,2010.8,2010.7,1.70585]
[1743103076959,1.00225768,2010.8,2010.7,1.70585]
[1743103077346,0.00745768,2010.8,2010.7,1.70585]
[1743103078160,0.99464,2011.2,2011.1,0.99461]
[1743103078354,2.2974,2011.3,2011.2,0.99461]
[1743103078667,0.99454,2011.4,2011.3,0.99456]
[1743103078866,0.99454,2011.4,2011.3,4.20236]
[1743103079461,2.29729,2011.5,2011.4,0.99451]
[1743103079659,1.3028,2011.5,2011.4,0.99451]
[1743103079866,1.00190768,2011.6,2011.5,0.99446]
[1743103080259,0.00745768,2011.6,2011.5,0.99446]
[1743103081151,0.00745768,2011.6,2011.5,1.67066]
[1743103082382,0.99446,2011.5,2011.4,1.3349]
[1743103082570,3.81866,2011.5,2011.4,1.3349]
[1743103085367,0.99451,2011.4,2011.3,0.00745768]
[1743103085556,2.40631,2011.4,2011.3,0.00745768]
[1743103087267,2.40631,2011.4,2011.3,1.00201768]
[1743103087567,0.99451,2011.4,2011.3,0.00745768]
[1743103088067,0.99451,2011.4,2011.3,1.43615768]
[1743103088675,5.63151,2011.4,2011.3,0.00745768]
[1743103090668,0.99465,2011.1,2011.0,3.2078]
[1743103091267,0.99485,2010.7,2010.6,6.4058]
[1743103091463,3.88805,2011.0,2010.6,3.2078]
[1743103091673,0.99485,2010.7,2010.6,4.20268]
[1743103091965,0.99485,2010.7,2010.6,4.21015768]
[1743103092160,0.99485,2010.7,2010.6,3.21525768]
[1743103092369,0.99485,2010.7,2010.6,4.60785768]
[1743103092870,1.65785,2010.7,2010.6,4.60785768]
[1743103095064,1.65785,2010.7,2010.6,3.21525768]
[1743103096774,1.65785,2010.7,2010.6,3.27e-05]
[1743103096971,4.86565,2010.7,2010.6,3.27e-05]
[1743103097171,8.06365,2010.7,2010.6,3.27e-05]
[1743103097876,10.56365,2010.7,2010.6,3.27e-05]
[1743103098476,11.98895,2010.7,2010.6,3.27e-05]
[1743103104079,17.94095,2010.7,2010.6,3.27e-05]
[1743103107674,18.02272963,2010.7,2010.6,3.27e-05]
[1743103107874,18.02272978,2010.7,2010.6,3.27e-05]
[1743103108269,4.97505,2010.4,2009.8,0.7197]
[1743103108484,0.9954,2009.6,2009.5,2.7904]
[1743103110277,0.9954,2009.6,2009.5,3.78585]
[1743103110485,0.9954,2009.6,2009.5,2.7904]
[1743103110880,0.99537,2009.7,2009.6,0.99539]
[1743103111085,0.00745768,2009.8,2009.6,4.6327]
[1743103111282,0.99535,2009.7,2009.6,5.62808]
[1743103111486,1.00276768,2009.8,2009.7,0.99535]
[1743103111685,0.00745768,2009.8,2009.6,3.2078]
[1743103111886,0.00745768,2009.8,2009.7,0.99535]
[1743103112180,3.2078,2010.6,2009.6,5.7078]
[1743103112399,0.99484,2010.8,2010.7,0.99483]
[1743103112584,0.99486,2010.7,2010.6,0.99488]
[1743103112882,0.99486,2010.7,2010.6,0.9949]
[1743103113585,0.99485,2010.7,2010.6,0.9949]
[1743103114382,0.99484,2010.8,2010.7,0.99484]
[1743103114585,0.99484,2010.8,2010.6,0.99487]
[1743103114889,0.99485,2010.7,2010.6,0.99487]
[1743103115087,0.00745768,2010.9,2010.5,3.14746]
[1743103115285,0.00745768,2010.9,2010.8,0.9948]
[1743103115489,0.99462,2011.2,2011.1,0.99464]
[1743103115790,0.99465,2011.1,2011.0,0.99466]
[1743103116177,5.6942,2011.3,2010.9,0.99472]
[1743103116378,0.99465,2011.1,2011.0,1.6928]
[1743103117286,0.99465,2011.1,2011.0,0.6981]
[1743103117685,0.99465,2011.1,2011.0,1.6928]
[1743103118992,0.99464,2011.2,2011.1,0.99465]
[1743103119194,4.20984768,2011.3,2011.0,0.6981]
[1743103119390,0.99461,2011.2,2011.1,0.99462]
[1743103119588,3.21525768,2011.3,2011.0,1.69278]
[1743103120086,0.99464,2011.2,2011.0,1.69278]
[1743103120993,3.21525768,2011.3,2011.0,1.69278]
[1743103120994,0.99465,2011.1,2011.0,1.69278]
[1743103121387,0.99465,2011.1,2011.0,0.6981]
[1743103121789,0.99465,2011.1,2011.0,1.6928]
[1743103121989,0.99465,2011.1,2011.0,0.6981]
[1743103122695,0.99465,2011.1,2011.0,1.69276]
[1743103126288,1.00203768,2011.3,2011.2,0.99461]
[1743103126489,0.00745768,2011.3,2011.2,0.99461]
[1743103126689,0.99449,2011.5,2011.3,0.99451]
[1743103126890,0.99446,2011.5,2011.4,0.694]
[1743103130793,0.99446,2011.5,2011.4,2.0596]
[1743103131901,2.41526,2011.5,2011.4,2.0596]
[1743103136800,0.99446,2011.5,2011.4,6.26191]
[1743103137005,0.99446,2011.5,2011.4,6.91671]
[1743103137896,0.99446,2011.5,2011.4,5.9222]
[1743103138902,0.99446,2011.5,2011.4,5.2282]
[1743103141298,1.37,2011.6,2011.5,0.99446]
[1743103141502,2.36441,2011.6,2011.5,2.33946]
[1743103141694,2.36441,2011.6,2011.5,1.345]
[1743103146207,2.36441,2011.6,2011.5,2.33946]
[1743103146402,0.00745768,2011.7,2011.6,0.99441]
[1743103146709,0.00745768,2011.7,2011.6,6.20451]
[1743103147099,0.99425,2012.0,2011.9,0.99426]
[1743103147295,0.99419,2012.1,2012.0,0.6731]
[1743103147514,0.99419,2012.1,2012.0,2.1166]
[1743103156706,0.99419,2012.1,2012.0,1.4435]
[1743103158510,0.99419,2012.1,2011.8,3.8792]
[1743103158511,0.99426,2011.9,2011.8,3.197]
[1743103158813,0.99426,2011.9,2011.8,1.3585]
[1743103159108,0.99436,2011.7,2011.6,3.8777]
[1743103160615,2.29916,2011.7,2011.6,5.2541]
[1743103162015,2.29916,2011.7,2011.6,2.0571]
[1743103163706,0.99436,2011.7,2011.6,3.05151]
[1743103164618,0.99431,2011.9,2011.8,0.99427]
[1743103164922,0.99431,2011.9,2011.8,7.39907]
[1743103165217,0.99423,2012.0,2011.9,0.99418]
[1743103165513,0.99423,2012.0,2011.9,2.30878]
[1743103165815,0.99423,2012.0,2011.9,2.97858]
[1743103166217,0.99423,2012.0,2011.9,1.9844]
[1743103166516,0.99423,2012.0,2011.9,2.97866]
[1743103171016,0.99418,2012.1,2012.0,0.99416]
[1743103171212,0.99414,2012.2,2012.1,0.99409]
[1743103171514,0.99414,2012.2,2012.1,8.83939]
[1743103173010,0.99411,2012.3,2012.2,0.99406]
[1743103173208,0.99411,2012.3,2012.2,2.29696]
[1743103177519,0.99401,2012.5,2012.4,0.994]
[1743103177719,2.43931,2012.5,2012.4,0.994]
[1743103178024,0.99401,2012.5,2012.4,0.994]
[1743103178321,0.99401,2012.5,2012.4,4.872]
[1743103178520,1.4281,2012.6,2012.5,0.99396]
[1743103178725,2.48417,2013.1,2012.5,1.333]
[1743103178918,0.9938,2012.9,2012.8,0.9938]
[1743103179111,0.9938,2012.9,2012.8,4.53]
[1743103179317,2.4219,2012.9,2012.8,4.53]
[1743103185619,0.99386,2012.7,2012.6,0.00745768]
[1743103186224,2.36666,2012.7,2012.6,0.00745768]
[1743103190923,0.99401,2012.4,2012.3,1.3355]
[1743103191623,0.99411,2012.2,2012.1,4.5876]
[1743103191821,0.99411,2012.2,2012.1,7.7836]
[1743103193029,2.35571,2012.2,2012.1,9.1293]
[1743103193226,2.35571,2012.2,2012.1,10.12346]
[1743103193428,2.35571,2012.2,2012.1,9.1293]
[1743103193818,2.35571,2012.2,2012.1,10.12346]
[1743103194123,2.35571,2012.2,2012.1,9.1293]
[1743103197918,2.35571,2012.2,2012.1,2.7255]
[1743103198122,2.35571,2012.2,2012.1,5.9215]
[1743103200721,0.99411,2012.2,2012.1,5.9215]
[1743103200929,0.99411,2012.2,2012.1,6.91566]
[1743103201124,0.99411,2012.2,2012.1,5.9215]
[1743103204035,0.99411,2012.2,2012.1,6.91566]
[1743103204927,0.99411,2012.2,2012.1,5.9215]
[1743103210235,0.99411,2012.2,2012.1,6.91566]
[1743103210539,0.99411,2012.2,2012.1,5.9215]
[1743103211034,0.99411,2012.2,2012.1,6.91566]
[1743103211238,0.99411,2012.2,2012.1,5.9215]
[1743103211629,0.99411,2012.2,2012.1,6.91566]
[1743103212040,0.99411,2012.2,2012.1,5.9215]
[1743103214439,0.99411,2012.2,2012.1,6.91566]
[1743103214936,0.99409,2012.3,2012.2,0.99409]
[1743103215136,0.99409,2012.3,2012.2,2.32879]
[1743103215546,0.00745768,2012.4,2012.3,0.99406]
[1743103215839,0.99397,2012.5,2012.4,0.99401]
[1743103216034,0.99393,2012.6,2012.5,0.99392]
[1743103216232,0.99393,2012.6,2012.5,3.75042]
[1743103216631,0.99388,2012.7,2012.6,0.99386]
[1743103216942,0.99386,2012.8,2012.7,0.99386]
[1743103217136,0.99386,2012.8,2012.7,4.18986]
[1743103217450,0.99386,2012.8,2012.7,5.52456]
[1743103217639,0.99386,2012.8,2012.7,4.5307]
[1743103220346,1.69796,2012.8,2012.7,1.3347]
[1743103220536,0.99391,2012.6,2012.5,4.6178]
[1743103220735,0.99391,2012.6,2012.5,6.0004]
[1743103221632,0.99391,2012.6,2012.5,6.99436]
[1743103223345,0.99391,2012.6,2012.5,3.9007]
[1743103223647,0.99391,2012.6,2012.5,3.196]
[1743103224047,0.99391,2012.6,2012.5,0.99396]
[1743103224548,2.38291,2012.7,2012.6,0.99391]
[1743103225049,2.38291,2012.7,2012.6,1.69991]
[1743103225239,2.38291,2012.7,2012.6,3.11041]
[1743103225434,0.99385,2012.8,2012.7,0.99384]
[1743103225639,0.99385,2012.8,2012.7,3.07224]
[1743103225841,0.99385,2012.8,2012.7,3.07226]
[1743103226047,0.99385,2012.8,2012.7,2.0784]
[1743103226537,0.99385,2012.8,2012.7,3.07226]
[1743103228041,0.99385,2012.8,2012.7,2.0784]
[1743103228638,0.99385,2012.8,2012.7,1.4105]
[1743103229253,0.99391,2012.6,2012.5,3.2078]
[1743103229550,0.99391,2012.6,2012.5,4.6488]
[1743103229953,2.39691,2012.6,2012.5,4.6488]
[1743103231845,2.39691,2012.6,2012.5,3.2078]
[1743103233144,0.99406,2012.3,2012.2,2.29731]
[1743103233349,0.99406,2012.3,2012.2,0.99411]
[1743103233741,2.0886,2012.4,2012.1,54.98482]
[1743103233742,0.99411,2012.2,2012.1,54.98482]
[1743103234054,1.3662,2012.2,2012.1,54.98482]
[1743103234253,2.36031,2012.2,2012.1,54.98482]
[1743103234750,1.3662,2012.2,2012.1,54.98482]
[1743103235543,1.3662,2012.2,2012.1,4.88182]
[1743103235750,2.36031,2012.2,2012.1,4.88182]
[1743103239353,0.99416,2012.1,2012.0,3.2078]
[1743103239547,3.06166,2012.1,2012.0,3.2078]
[1743103239748,3.06166,2012.1,2012.0,3.20034232]
[1743103239946,0.99421,2012.0,2011.9,0.00745768]
[1743103240154,3.07831,2012.0,2011.9,0.00745768]
[1743103242049,3.07831,2012.0,2011.9,1.00171768]
[1743103242246,2.37221,2012.0,2011.9,1.00171768]
[1743103243358,2.37221,2012.0,2011.9,0.00745768]
[1743103243655,2.37221,2012.0,2011.9,1.00171768]
[1743103244060,2.37221,2012.0,2011.9,0.00745768]
[1743103244662,2.37221,2012.0,2011.9,0.70705768]
[1743103245063,3.14719,2012.3,2011.9,0.70705768]
[1743103245262,0.99419,2012.1,2012.0,0.99417]
[1743103246259,4.20182,2012.4,2012.3,0.99406]
[1743103246561,0.99402,2012.4,2012.3,4.20186]
[1743103247760,0.99402,2012.4,2012.3,3.2078]
[1743103247954,0.99402,2012.4,2012.3,4.20186]
[1743103248555,0.99402,2012.4,2012.3,3.2078]
[1743103248757,0.99402,2012.4,2012.3,4.20186]
[1743103250265,0.99402,2012.4,2012.3,3.2078]
[1743103250868,0.99402,2012.4,2012.3,5.61466]
[1743103251960,0.994,2012.5,2012.4,0.994]
[1743103252157,2.3036,2012.5,2012.4,2.3236]
[1743103252355,3.2078,2013.0,2012.6,2.48477]
[1743103252661,0.99377,2012.9,2012.8,0.99381]
[1743103253059,5.51115,2013.0,2012.9,0.99377]
[1743103253570,0.99378,2012.9,2012.8,0.99378]
[1743103254180,1.3096,2013.0,2012.7,4.5326]
[1743103254373,0.99377,2012.9,2012.8,0.99377]
[1743103254864,0.99381,2012.9,2012.8,0.99381]
[1743103258674,2.30332,2013.0,2012.9,0.99377]
[1743103259469,0.99372,2013.0,2012.9,0.99377]
[1743103261572,3.12,2013.1,2013.0,0.99372]
[1743103261777,3.2078,2013.3,2013.0,3.2078]
[1743103261982,0.99367,2013.1,2013.0,4.20148]
[1743103262774,2.38996,2013.2,2013.1,0.99367]
[1743103262979,2.38996,2013.2,2013.1,1.69007]
[1743103263475,0.9936,2013.3,2013.2,0.99358]
[1743103263675,0.99355,2013.4,2013.3,0.99353]
[1743103264180,0.99361,2013.3,2013.2,0.99358]
[1743103265385,1.3289,2013.4,2013.3,0.99357]
[1743103265576,0.99342,2013.6,2013.5,0.99347]
[1743103266082,0.99349,2013.5,2013.4,0.99347]
[1743103266280,0.99352,2013.4,2013.3,7.39637]
[1743103266480,2.40972,2013.4,2013.3,3.2078]
[1743103268682,2.40972,2013.4,2013.3,4.20137]
[1743103268880,2.40972,2013.4,2013.3,3.2078]
[1743103269385,2.40972,2013.4,2013.3,4.20137]
[1743103269987,2.40972,2013.4,2013.3,3.2078]
[1743103270386,2.40972,2013.4,2013.3,4.20137]
[1743103270877,2.40972,2013.4,2013.3,5.61037]
[1743103271285,2.40972,2013.4,2013.3,4.6168]
[1743103271687,2.40972,2013.4,2013.3,5.61037]
[1743103272273,2.40972,2013.4,2013.3,4.6168]
[1743103272478,2.40972,2013.4,2013.3,3.2078]
[1743103273387,0.99357,2013.3,2013.2,2.31602]
[1743103273591,3.02427,2013.3,2013.2,2.31602]